Department Family,Entity,Date,Expense Type,Expense Area,Supplier,Amount in Sterling,System Reference
BEIS,Companies House,02/06/2016,Agency/Contract Staff         ,Accounting                    ,Hays Specialist Recruitment Ltd         ,"1,680.00",559762
BEIS,Companies House,10/06/2016,Agency/Contract Staff         ,Accounting                    ,Hays Specialist Recruitment Ltd         ,840.00,559911
BEIS,Companies House,17/06/2016,Agency/Contract Staff         ,Accounting                    ,Hays Specialist Recruitment Ltd         ,"1,260.00",560247
BEIS,Companies House,23/06/2016,Agency/Contract Staff         ,Accounting                    ,Hays Specialist Recruitment Ltd         ,"2,100.00",560466
BEIS,Companies House,30/06/2016,Agency/Contract Staff         ,Accounting                    ,Hays Specialist Recruitment Ltd         ,840.00,560605
BEIS,Companies House,06/06/2016,Agency/Contract Staff         ,Development Strategy          ,Capita Resourcing                       ,"2,311.86",559790
BEIS,Companies House,06/06/2016,Agency/Contract Staff         ,Development Strategy          ,Capita Resourcing                       ,"2,543.05",559791
BEIS,Companies House,10/06/2016,Agency/Contract Staff         ,Development Strategy          ,Capita Resourcing                       ,"2,543.05",559921
BEIS,Companies House,10/06/2016,Agency/Contract Staff         ,Development Strategy          ,Capita Resourcing                       ,"4,854.91",559922
BEIS,Companies House,10/06/2016,Agency/Contract Staff         ,Development Strategy          ,Capita Resourcing                       ,"7,667.34",559923
BEIS,Companies House,17/06/2016,Agency/Contract Staff         ,Development Strategy          ,Capita Resourcing                       ,"3,930.17",560238
BEIS,Companies House,17/06/2016,Agency/Contract Staff         ,Development Strategy          ,Capita Resourcing                       ,"2,706.12",560239
BEIS,Companies House,23/06/2016,Agency/Contract Staff         ,Development Strategy          ,Capita Resourcing                       ,"2,080.68",560361
BEIS,Companies House,23/06/2016,Agency/Contract Staff         ,IT Services                   ,Spring Technology Staffing Services Ltd ,"2,632.32",560345
BEIS,Companies House,23/06/2016,Agency/Contract Staff         ,IT Services                   ,Spring Technology Staffing Services Ltd ,"2,105.86",560346
BEIS,Companies House,23/06/2016,Agency/Contract Staff         ,IT Services                   ,Spring Technology Staffing Services Ltd ,"1,052.93",560353
BEIS,Companies House,30/06/2016,Agency/Contract Staff         ,IT Services                   ,Spring Technology Staffing Services Ltd ,"2,105.86",560577
BEIS,Companies House,10/06/2016,Agency/Contract Staff         ,Project Centre                ,Capita Resourcing                       ,"5,388.88",559920
BEIS,Companies House,10/06/2016,Agency/Contract Staff         ,Project Centre                ,Capita Resourcing                       ,"7,428.78",559925
BEIS,Companies House,17/06/2016,Agency/Contract Staff         ,Project Centre                ,Capita Resourcing                       ,"2,993.82",560237
BEIS,Companies House,17/06/2016,Agency/Contract Staff         ,Project Centre                ,Capita Resourcing                       ,"4,127.10",560241
BEIS,Companies House,23/06/2016,Agency/Contract Staff         ,Project Centre                ,Capita Resourcing                       ,"2,993.82",560360
BEIS,Companies House,23/06/2016,Agency/Contract Staff         ,Project Centre                ,Capita Resourcing                       ,"4,127.10",560362
BEIS,Companies House,02/06/2016,Agency/Contract Staff         ,Project Centre                ,Hays Specialist Recruitment Ltd         ,"2,376.00",559756
BEIS,Companies House,10/06/2016,Agency/Contract Staff         ,Project Centre                ,Hays Specialist Recruitment Ltd         ,"2,376.00",559906
BEIS,Companies House,17/06/2016,Agency/Contract Staff         ,Project Centre                ,Hays Specialist Recruitment Ltd         ,"1,782.00",560246
BEIS,Companies House,27/06/2016,Agency/Contract Staff         ,Project Centre                ,Hays Specialist Recruitment Ltd         ,"2,079.00",560509
BEIS,Companies House,30/06/2016,Agency/Contract Staff         ,Project Centre                ,Hays Specialist Recruitment Ltd         ,"2,376.00",560603
BEIS,Companies House,10/06/2016,Agency/Contract Staff         ,Software Engineering          ,Capita Resourcing                       ,"4,010.69",559924
BEIS,Companies House,10/06/2016,Agency/Contract Staff         ,Software Engineering          ,Capita Resourcing                       ,"2,344.32",559926
BEIS,Companies House,17/06/2016,Agency/Contract Staff         ,Software Engineering          ,Capita Resourcing                       ,"2,506.68",560240
BEIS,Companies House,17/06/2016,Agency/Contract Staff         ,Software Engineering          ,Capita Resourcing                       ,"1,875.46",560242
BEIS,Companies House,21/06/2016,Agency/Contract Staff         ,Software Engineering          ,FDM GROUP                               ,"5,184.00",560310
BEIS,Companies House,21/06/2016,Agency/Contract Staff         ,Software Engineering          ,FDM GROUP                               ,"8,454.52",560311
BEIS,Companies House,10/06/2016,Agency/Contract Staff         ,Software Engineering          ,Hays Specialist Recruitment Ltd         ,"2,820.00",559908
BEIS,Companies House,10/06/2016,Agency/Contract Staff         ,Software Engineering          ,Hays Specialist Recruitment Ltd         ,"2,820.00",559909
BEIS,Companies House,10/06/2016,Agency/Contract Staff         ,Software Engineering          ,Hays Specialist Recruitment Ltd         ,"3,948.00",559910
BEIS,Companies House,17/06/2016,Agency/Contract Staff         ,Software Engineering          ,Hays Specialist Recruitment Ltd         ,"3,948.00",560248
BEIS,Companies House,23/06/2016,Agency/Contract Staff         ,Software Engineering          ,Hays Specialist Recruitment Ltd         ,"2,256.00",560467
BEIS,Companies House,30/06/2016,Agency/Contract Staff         ,Software Engineering          ,Hays Specialist Recruitment Ltd         ,"2,820.00",560604
BEIS,Companies House,02/06/2016,Agency/Contract Staff         ,Software Engineering          ,Spring Technology Staffing Services Ltd ,"3,253.80",559754
BEIS,Companies House,08/06/2016,Agency/Contract Staff         ,Software Engineering          ,Spring Technology Staffing Services Ltd ,"2,895.55",559853
BEIS,Companies House,08/06/2016,Agency/Contract Staff         ,Software Engineering          ,Spring Technology Staffing Services Ltd ,"3,158.78",559854
BEIS,Companies House,08/06/2016,Agency/Contract Staff         ,Software Engineering          ,Spring Technology Staffing Services Ltd ,"3,158.78",559855
BEIS,Companies House,08/06/2016,Agency/Contract Staff         ,Software Engineering          ,Spring Technology Staffing Services Ltd ,"3,422.02",559856
BEIS,Companies House,08/06/2016,Agency/Contract Staff         ,Software Engineering          ,Spring Technology Staffing Services Ltd ,"3,422.02",559857
BEIS,Companies House,08/06/2016,Agency/Contract Staff         ,Software Engineering          ,Spring Technology Staffing Services Ltd ,"3,895.92",559858
BEIS,Companies House,08/06/2016,Agency/Contract Staff         ,Software Engineering          ,Spring Technology Staffing Services Ltd ,"3,141.31",559859
BEIS,Companies House,08/06/2016,Agency/Contract Staff         ,Software Engineering          ,Spring Technology Staffing Services Ltd ,"3,404.52",559860
BEIS,Companies House,10/06/2016,Agency/Contract Staff         ,Software Engineering          ,Spring Technology Staffing Services Ltd ,"2,747.48",559913
BEIS,Companies House,10/06/2016,Agency/Contract Staff         ,Software Engineering          ,Spring Technology Staffing Services Ltd ,"2,122.31",559914
BEIS,Companies House,15/06/2016,Agency/Contract Staff         ,Software Engineering          ,Spring Technology Staffing Services Ltd ,"2,790.28",560216
BEIS,Companies House,23/06/2016,Agency/Contract Staff         ,Software Engineering          ,Spring Technology Staffing Services Ltd ,"2,958.00",560344
BEIS,Companies House,23/06/2016,Agency/Contract Staff         ,Software Engineering          ,Spring Technology Staffing Services Ltd ,"2,958.00",560347
BEIS,Companies House,23/06/2016,Agency/Contract Staff         ,Software Engineering          ,Spring Technology Staffing Services Ltd ,"2,366.40",560354
BEIS,Companies House,23/06/2016,Agency/Contract Staff         ,Software Engineering          ,Spring Technology Staffing Services Ltd ,"2,807.82",560355
BEIS,Companies House,30/06/2016,Agency/Contract Staff         ,Software Engineering          ,Spring Technology Staffing Services Ltd ,"2,632.32",560576
BEIS,Companies House,30/06/2016,Agency/Contract Staff         ,Software Engineering          ,Spring Technology Staffing Services Ltd ,"2,105.86",560600
BEIS,Companies House,30/06/2016,Agency/Contract Staff         ,Software Engineering          ,Spring Technology Staffing Services Ltd ,"2,105.86",560601
BEIS,Companies House,30/06/2016,Agency/Contract Staff         ,Software Engineering          ,Spring Technology Staffing Services Ltd ,"2,632.32",560602
BEIS,Companies House,02/06/2016,Agency/Contract Staff         ,Software Engineering          ,TRIAD RESOURCING                        ,"12,996.00",559757
BEIS,Companies House,14/06/2016,Agency/Contract Staff         ,Software Engineering          ,TRIAD RESOURCING                        ,"5,760.00",560111
BEIS,Companies House,30/06/2016,Agency/Contract Staff         ,Software Engineering          ,TRIAD RESOURCING                        ,"12,996.00",560583
BEIS,Companies House,06/06/2016,C.H. Adjudicator              ,Late Filing Penalties,"Personal Expenses, Name Withheld","4,730.30",559784
BEIS,Companies House,21/06/2016,C.H. Adjudicator              ,Late Filing Penalties,"Personal Expenses, Name Withheld","1,991.05",560294
BEIS,Companies House,06/06/2016,CHD Invoice Printing          ,Accounting                    ,DST OUTPUT (LONDON) LTD                 ,"1,795.95",559812
BEIS,Companies House,08/06/2016,Civil Service Learning        ,Training                      ,Capita Business Services Ltd            ,"1,878.00",559839
BEIS,Companies House,09/06/2016,Cloud Services                ,Software Engineering          ,Amazon Web Services                     ,"18,148.60",559959
BEIS,Companies House,10/06/2016,Comms Equipment          ,IT Services                   ,British Telecom PLC                     ,554.10,559797
BEIS,Companies House,21/06/2016,Comms Equipment          ,IT Services                   ,British Telecom PLC                     ,554.10,560300
BEIS,Companies House,21/06/2016,Consultants Computer          ,Late Filing Penalties,Advanced Business Solutions             ,"3,500.00",560033
BEIS,Companies House,21/06/2016,Consultants Computer          ,Late Filing Penalties,Advanced Business Solutions             ,875.00,560034
BEIS,Companies House,17/06/2016,Consultants Computer          ,Late Filing Penalties,Hays Specialist Recruitment Ltd         ,807.68,560235
BEIS,Companies House,23/06/2016,Consultants Computer          ,Late Filing Penalties,Hays Specialist Recruitment Ltd         ,807.68,560464
BEIS,Companies House,23/06/2016,Contact Centre                ,Contact Centre,Serco Limited                           ,"171,980.42",560352
BEIS,Companies House,27/06/2016,Data Tel Bills&ISP managed ser,Procurement                   ,Virgin Media Business                   ,"4,386.10",550113
BEIS,Companies House,27/06/2016,Data Tel Bills&ISP managed ser,Procurement                   ,Virgin Media Business                   ,"2,049.10",552076
BEIS,Companies House,27/06/2016,Data Tel Bills&ISP managed ser,Procurement                   ,Virgin Media Business                   ,"4,386.10",553203
BEIS,Companies House,27/06/2016,Data Tel Bills&ISP managed ser,Procurement                   ,Virgin Media Business                   ,"2,049.10",554987
BEIS,Companies House,27/06/2016,Data Tel Bills&ISP managed ser,Procurement                   ,Virgin Media Business                   ,"4,386.10",556214
BEIS,Companies House,27/06/2016,Data Tel Bills&ISP managed ser,Procurement                   ,Virgin Media Business                   ,"2,049.10",558348
BEIS,Companies House,27/06/2016,Data Tel Bills&ISP managed ser,Procurement                   ,Virgin Media Business                   ,"19,276.50",560519
BEIS,Companies House,14/06/2016,Electricity                   ,Building Services             ,E D F ENERGY CUSTOMERS PLC              ,"40,995.31",559971
BEIS,Companies House,17/06/2016,Electricity                   ,Edinburgh                     ,Scottish Hydro Electric                 ,602.18,560236
BEIS,Companies House,21/06/2016,Electricity                   ,Northern Ireland              ,Power NI                                ,883.67,560292
BEIS,Companies House,21/06/2016,Enforcement,Late Filing Penalties,AKINIKA DEBT RECOVERY LIMITED           ,"9,786.17",560308
BEIS,Companies House,21/06/2016,Enforcement,Late Filing Penalties,AKINIKA DEBT RECOVERY LIMITED           ,"6,789.00",560308
BEIS,Companies House,21/06/2016,Enforcement,Late Filing Penalties,AKINIKA DEBT RECOVERY LIMITED           ,"1,539.02",560308
BEIS,Companies House,06/06/2016,Envelopes                     ,Procurement                   ,WILLIAMS LEA                            ,589.05,559788
BEIS,Companies House,28/06/2016,EST Additions This Year       ,Building Services             ,Department for Business Innovation Skill,"130,058.83",560547
BEIS,Companies House,28/06/2016,EST Additions This Year       ,Building Services             ,Department for Business Innovation Skill,"82,736.00",560548
BEIS,Companies House,27/06/2016,Ex Gratia Payments            ,CPES                          ,Bond Dickinson LLP,"3,142.18",560520
,Companies House,28/06/2016,Ex Gratia Payments            ,CPES                          ,Keystone Law Client Account,"3,067.50",560546
BIS,Companies House,28/06/2016,Ex Gratia Payments            ,CPES                          ,Macroberts LLP,"1,500.00",560540
BIS,Companies House,27/06/2016,Ex Gratia Payments            ,Edinburgh                     ,Kingsmuir Projects Limited,"1,500.00",560514
BIS,Companies House,10/06/2016,Exhibitions                   ,Communications                ,Prysm Media Group Ltd                   ,"5,650.00",559915
BIS,Companies House,10/06/2016,External managed services     ,Development Strategy          ,BRAMBLE HUB LIMITED                     ,"62,451.85",559968
BIS,Companies House,17/06/2016,External managed services     ,Development Strategy          ,Epimorphics                             ,"3,101.22",560244
BIS,Companies House,23/06/2016,External managed services     ,Development Strategy          ,Methods Digital Limited                 ,"2,500.00",558886
BIS,Companies House,23/06/2016,External managed services     ,Development Strategy          ,Methods Digital Limited                 ,"10,556.00",559321
BIS,Companies House,23/06/2016,External managed services     ,Software Engineering          ,Methods Digital Limited                 ,"107,100.00",560105
BIS,Companies House,08/06/2016,Fire Protection               ,Building Services             ,Advanced Fire Technologies Ltd          ,"12,376.80",559806
BIS,Companies House,14/06/2016,Gas                           ,Building Services             ,CORONA ENERGY RETAIL 4 LTD              ,619.93,560036
BIS,Companies House,10/06/2016,Gazette Notices               ,CPES                          ,Stationery Office                       ,"7,708.99",559995
BIS,Companies House,10/06/2016,Gazette Notices               ,CPES                          ,Stationery Office                       ,940.27,559996
BIS,Companies House,10/06/2016,Hardware &SoftwareMaintenance ,Procurement                   ,Computacenter (GCAT)                    ,"6,310.00",559760
BIS,Companies House,14/06/2016,Hardware &SoftwareMaintenance ,Procurement                   ,Computacenter (GCAT)                    ,"66,629.86",559991
BIS,Companies House,23/06/2016,Hardware &SoftwareMaintenance ,Procurement                   ,Grey Matter                             ,755.81,560309
BIS,Companies House,14/06/2016,Hardware &SoftwareMaintenance ,Procurement                   ,Kodak Alaris Ltd                        ,"1,928.00",559986
BIS,Companies House,14/06/2016,Hardware &SoftwareMaintenance ,Procurement                   ,Kodak Alaris Ltd                        ,770.70,559987
BIS,Companies House,14/06/2016,Hardware &SoftwareMaintenance ,Procurement                   ,Kodak Alaris Ltd                        ,"2,280.32",559989
BIS,Companies House,14/06/2016,Hardware &SoftwareMaintenance ,Procurement                   ,Kodak Alaris Ltd                        ,"1,928.00",559990
BIS,Companies House,14/06/2016,Hardware &SoftwareMaintenance ,Procurement                   ,Kodak Alaris Ltd                        ,"9,570.00",560123
BIS,Companies House,21/06/2016,Hardware &SoftwareMaintenance ,Procurement                   ,Kodak Alaris Ltd                        ,567.65,560312
BIS,Companies House,21/06/2016,Hardware &SoftwareMaintenance ,Procurement                   ,Kodak Alaris Ltd                        ,567.65,560313
BIS,Companies House,10/06/2016,Hardware &SoftwareMaintenance ,Procurement                   ,Pitney Bowes Software Europe Ltd        ,"2,544.92",559758
BIS,Companies House,28/06/2016,Health promotion working group,Health and Wellbeing          ,The Workplace Massage Company           ,552.00,560550
BIS,Companies House,14/06/2016,Hospitality                   ,Procurement                   ,Elior UK plc                            ,879.30,560110
BIS,Companies House,08/06/2016,IDS                           ,Customer Operations Team      ,City Sprint                             ,"2,298.61",559805
BIS,Companies House,23/06/2016,Internal Audit costs          ,Organisational Overheads      ,GOVERNMENT INTERNAL AUDIT AGENCY        ,"82,356.00",560348
BIS,Companies House,17/06/2016,Legal Costs General,CPES                          ,GOVERNMENT LEGAL DEPARTMENT             ,"98,373.40",557142
BIS,Companies House,17/06/2016,Legal Costs General,CPES                          ,GOVERNMENT LEGAL DEPARTMENT             ,"100,082.80",558637
BIS,Companies House,23/06/2016,Legal Costs General,Legal Services                ,GOVERNMENT LEGAL DEPARTMENT             ,"147,141.25",560118
BIS,Companies House,27/06/2016,Micrographics                 ,Customer Services/London      ,Transmedia Technology Ltd               ,"3,741.30",559090
BIS,Companies House,27/06/2016,Micrographics                 ,Customer Services/London      ,Transmedia Technology Ltd               ,"6,350.02",559994
BIS,Companies House,28/06/2016,Occupational Health Contract  ,Health and Wellbeing          ,Mary Gavin Teamworks                    ,855.00,560499
BIS,Companies House,23/06/2016,Office Machinery Maintenance  ,Procurement                   ,Konica Minolta Business Solutions (wales,"18,472.27",560304
BIS,Companies House,10/06/2016,Outside Market Research       ,Product,IFF RESEARCH LTD                        ,"18,126.00",559918
BIS,Companies House,10/06/2016,Outside Market Research       ,Product,IFF RESEARCH LTD                        ,"12,084.00",559919
BIS,Companies House,06/06/2016,Postage Costs,Customer Operations Team      ,Royal Mail                              ,"14,438.67",559815
BIS,Companies House,06/06/2016,Postage Costs,Customer Operations Team      ,Royal Mail                              ,"10,733.21",559816
BIS,Companies House,15/06/2016,Postage Costs,Customer Operations Team      ,Royal Mail                              ,"12,039.63",560215
BIS,Companies House,21/06/2016,Postage Costs,Customer Operations Team      ,Royal Mail                              ,"13,731.30",560301
BIS,Companies House,27/06/2016,Postage Costs,Customer Operations Team      ,Royal Mail                              ,"15,833.75",560511
BIS,Companies House,14/06/2016,Postage Costs,Edinburgh                     ,Royal Mail                              ,"1,139.38",559974
BIS,Companies House,28/06/2016,Postage Costs,Northern Ireland              ,Neopost Limited                         ,500.00,560539
BIS,Companies House,10/06/2016,Postage Document Exchange     ,Customer Operations Team      ,DX Network Services Limited             ,"7,950.00",559907
BIS,Companies House,10/06/2016,Postage Document Exchange     ,Edinburgh                     ,DX Network Services Limited             ,"1,350.00",559907
BIS,Companies House,02/06/2016,Prepaid conference fees       ,Directorate                   ,City and County of Cardiff              ,"15,000.00",559525
BIS,Companies House,14/06/2016,Print and Mailing Contract    ,Procurement                   ,WILLIAMS LEA                            ,"289,399.59",558912
BIS,Companies House,17/06/2016,Print and Mailing Contract    ,Procurement                   ,WILLIAMS LEA                            ,"329,594.87",560245
BIS,Companies House,27/06/2016,Professional Fees             ,Directorate                   ,SWAT UK LIMITED                         ,"6,060.00",560350
BIS,Companies House,14/06/2016,Professional Fees             ,IT Services                   ,Computacenter (GCAT)                    ,"1,886.40",559973
BIS,Companies House,17/06/2016,Professional Fees             ,IT Services                   ,Computacenter (GCAT)                    ,"2,277.60",560220
BIS,Companies House,17/06/2016,Professional Fees             ,IT Services                   ,Computacenter (GCAT)                    ,"2,028.00",560221
BIS,Companies House,14/06/2016,Professional Fees             ,IT Services                   ,EVOLVE SECURE SOLUTIONS LTD             ,"1,800.00",559975
BIS,Companies House,28/06/2016,Professional Fees             ,IT Services                   ,EVOLVE SECURE SOLUTIONS LTD             ,"3,600.00",560541
BIS,Companies House,06/06/2016,Professional Fees             ,IT Services                   ,NCC Group Plc                           ,"19,781.40",559607
BIS,Companies House,27/06/2016,Professional Fees             ,IT Services                   ,Risual Limited                          ,"2,850.00",560468
BIS,Companies House,27/06/2016,Professional Fees             ,IT Services                   ,Risual Limited                          ,"3,800.00",560469
BIS,Companies House,30/06/2016,Professional Fees             ,IT Services                   ,Risual Limited                          ,"2,850.00",560606
BIS,Companies House,23/06/2016,Professional Fees             ,Project Centre                ,CODE IT                                 ,"1,120.00",560351
BIS,Companies House,02/06/2016,Professional Fees             ,Software Management           ,DEVOPS GUYS LIMITED                     ,"6,400.00",559707
BIS,Companies House,28/06/2016,Professional Fees             ,Software Management           ,DEVOPS GUYS LIMITED                     ,"3,200.00",560500
BIS,Companies House,23/06/2016,Publication & prom Literature ,Communications                ,INTELLECTUAL PROPERTY OFFICE            ,"1,880.00",560349
BIS,Companies House,14/06/2016,Recruitment Expenses          ,HR Service delivery           ,X4 GROUP LTD                            ,"4,411.05",560120
BIS,Companies House,14/06/2016,Rent                          ,Northern Ireland              ,Colliers CRE                            ,"1,683.68",559992
BIS,Companies House,14/06/2016,Restaurant Services           ,Procurement                   ,Elior UK plc                            ,"15,086.29",560109
BIS,Companies House,17/06/2016,Restaurant Services           ,Procurement                   ,South Wales Vending                     ,870.00,560243
BIS,Companies House,17/06/2016,Rolling Maint.&minor contracts,Building Services             ,Advanced Fire Technologies Ltd          ,"69,868.80",559807
BIS,Companies House,21/06/2016,Security                      ,Accounting                    ,Loomis Uk Ltd                           ,676.47,560314
BIS,Companies House,21/06/2016,Service charges               ,Edinburgh                     ,KNIGHT FRANK                            ,"1,052.25",560039
BIS,Companies House,15/06/2016,Software as a service         ,IT Services                   ,CITRIX SYSTEMS UK LTD                   ,"5,611.20",560213
BIS,Companies House,30/06/2016,Software as a service         ,Software Management           ,NCC Group Plc                           ,"2,125.00",560582
BIS,Companies House,30/06/2016,Software Licence              ,IT Services                   ,Computacenter (GCAT)                    ,"5,921.28",560549
BIS,Companies House,17/06/2016,Software Licence              ,IT Services                   ,Gradian Systems                         ,"16,780.00",559491
BIS,Companies House,06/06/2016,Stationery & Consumables      ,Customer Operations Team      ,WARREN BOARD SALES LTD                  ,"1,249.60",559604
BIS,Companies House,08/06/2016,T and S for usability project ,Product,PEOPLE FOR RESEARCH                     ,552.00,559793
BIS,Companies House,15/06/2016,T and S for usability project ,Product,PEOPLE FOR RESEARCH                     ,"1,536.00",560107
BIS,Companies House,17/06/2016,Taxi - staff                  ,All Areas,Premier Cars (Cardiff) Ltd              ,"3,535.20",560233
BIS,Companies House,10/06/2016,Telecom Maintenance           ,Procurement                   ,UNIFY ENTERPRISE COMMUNICATIONS LIMITED ,"17,701.17",560000
BIS,Companies House,21/06/2016,Telecom Mobile Phone charges  ,IT Services                   ,TELEFONICA UK LTD                       ,"2,335.06",560290
BIS,Companies House,30/06/2016,Telephone Costs,Procurement                   ,British Telecom PLC                     ,"1,623.04",560551
BIS,Companies House,28/06/2016,TFM Cost Stream 2             ,Building Services             ,Department for Business Innovation Skill,"39,302.85",560555
BIS,Companies House,28/06/2016,TFM refurbishment             ,Building Services             ,Department for Business Innovation Skill,"101,931.04",560547
BIS,Companies House,06/06/2016,Training External             ,Training                      ,GIANT PROFESSIONAL LIMITED              ,800.00,559809
BIS,Companies House,30/06/2016,Training External             ,Training                      ,RUTH STEGGLES THE FRESH AIR COACH       ,"1,200.00",560599
BIS,Companies House,27/06/2016,Training External             ,Training                      ,THEATRE AND LTD                         ,"23,158.75",560504
BIS,Companies House,28/06/2016,Training ISD                  ,Training                      ,BITESIZE COMPUTER TRAINING LTD          ,"4,350.00",560543
BIS,Companies House,06/06/2016,Training ISD                  ,Training                      ,TESTING SOLUTIONS GROUP LIMITED         ,"12,000.00",559792
BIS,Companies House,06/06/2016,Translation                   ,Strategy & Policy             ,FCO Services  Translation & Interpreting,927.25,559755
BIS,Companies House,06/06/2016,Translation                   ,Strategy & Policy             ,FCO Services  Translation & Interpreting,833.00,559763
BIS,Companies House,08/06/2016,Water                         ,Building Services             ,Dwr Cymru Welsh Water                   ,"2,409.82",559801
BIS,Companies House,10/06/2016,Wood Pellets                  ,Building Services             ,Balcas Timber Ltd                       ,"3,569.60",559984
